No of Trans,Dept Family,Entity Name,Cert Date,Supplier Name,Reference,Gross Amt,Group/Department,Type of Expenditure - Subjective Codes
1,DCMS,HE,06/11/2015,Arval UK Limited,0040102706,"(14,029.31)",Resources-Finance & Procurement Dept,Car Leasing
2,DCMS,HE,11/11/2015,Bilfinger Europa Fac Management Ltd,0040102917,"5,705.38 ",Resources-Human Resources,Annual Cyclical Works-Building
3,DCMS,HE,11/11/2015,Bilfinger Europa Fac Management Ltd,0040102917,191.00 ,Resources-Human Resources,Annual Cyclical Works-Building
4,DCMS,HE,11/11/2015,Bilfinger Europa Fac Management Ltd,0040102917,"11,960.15 ",Resources-Human Resources,Annual Cyclical Work M & E
5,DCMS,HE,11/11/2015,Bilfinger Europa Fac Management Ltd,0040102917,"10,522.19 ",Resources-Human Resources,Office Cleaning
6,DCMS,HE,11/11/2015,Bilfinger Europa Fac Management Ltd,0040102917,"6,174.34 ",Resources-Human Resources,Office Security & Cash Collect
7,DCMS,HE,24/11/2015,British Gas,0020070386,207.24 ,Resources-Corporate,Electricity
8,DCMS,HE,24/11/2015,British Gas,0020070386,331.53 ,Resources-Corporate,Electricity
9,DCMS,HE,24/11/2015,British Gas,0020070386,330.52 ,Resources-Corporate,Electricity
10,DCMS,HE,24/11/2015,British Gas,0020070386,6.57 ,Resources-Corporate,Electricity
11,DCMS,HE,24/11/2015,British Gas,0020070386,10.56 ,Resources-Corporate,Electricity
12,DCMS,HE,24/11/2015,British Gas,0020070386,22.74 ,Resources-Corporate,Electricity
13,DCMS,HE,24/11/2015,British Gas,0020070386,72.12 ,Resources-Corporate,Electricity
14,DCMS,HE,24/11/2015,British Gas,0020070386,637.88 ,Resources-Corporate,Electricity
15,DCMS,HE,24/11/2015,British Gas,0020070386,662.36 ,Resources-Corporate,Electricity
16,DCMS,HE,24/11/2015,British Gas,0020070386,354.22 ,Resources-Corporate,Electricity
17,DCMS,HE,24/11/2015,British Gas,0020070386,16.87 ,Resources-Corporate,Electricity
18,DCMS,HE,24/11/2015,British Gas,0020070386,91.85 ,Resources-Corporate,Electricity
19,DCMS,HE,24/11/2015,British Gas,0020070386,42.61 ,Resources-Corporate,Electricity
20,DCMS,HE,24/11/2015,British Gas,0020070386,"3,551.91 ",Resources-Corporate,Electricity
21,DCMS,HE,24/11/2015,British Gas,0020070386,153.29 ,Resources-Corporate,Electricity
22,DCMS,HE,24/11/2015,British Gas,0020070386,232.01 ,Resources-Corporate,Electricity
23,DCMS,HE,24/11/2015,British Gas,0020070386,420.14 ,Resources-Corporate,Electricity
24,DCMS,HE,24/11/2015,British Gas,0020070386,468.44 ,Resources-Corporate,Electricity
25,DCMS,HE,24/11/2015,British Gas,0020070386,482.33 ,Resources-Corporate,Electricity
26,DCMS,HE,24/11/2015,British Gas,0020070386,"3,198.21 ",Resources-Corporate,Electricity
27,DCMS,HE,24/11/2015,British Gas,0020070386,7.09 ,Resources-Corporate,Electricity
28,DCMS,HE,24/11/2015,British Gas,0020070386,477.52 ,Resources-Corporate,Electricity
29,DCMS,HE,24/11/2015,British Gas,0020070386,41.76 ,Resources-Corporate,Electricity
30,DCMS,HE,24/11/2015,British Gas,0020070386,9.53 ,Resources-Corporate,Electricity
31,DCMS,HE,24/11/2015,British Gas,0020070386,105.25 ,Resources-Corporate,Electricity
32,DCMS,HE,24/11/2015,British Gas,0020070386,13.38 ,Resources-Corporate,Electricity
33,DCMS,HE,24/11/2015,British Gas,0020070386,"1,968.45 ",Resources-Corporate,Electricity
34,DCMS,HE,24/11/2015,British Gas,0020070386,"4,760.53 ",Resources-Corporate,Electricity
35,DCMS,HE,24/11/2015,British Gas,0020070386,592.31 ,Resources-Corporate,Electricity
36,DCMS,HE,24/11/2015,British Gas,0020070386,"6,190.96 ",Resources-Corporate,Electricity
37,DCMS,HE,24/11/2015,British Gas,0020070386,447.61 ,Resources-Corporate,Electricity
38,DCMS,HE,24/11/2015,British Gas,0020070386,"13,929.88 ",Resources-Corporate,Electricity
39,DCMS,HE,24/11/2015,British Gas,0020070386,456.24 ,Resources-Corporate,Electricity
40,DCMS,HE,24/11/2015,British Gas,0020070386,"7,483.22 ",Resources-Corporate,Electricity
41,DCMS,HE,24/11/2015,British Gas,0020070386,"14,615.91 ",Resources-Corporate,Electricity
42,DCMS,HE,24/11/2015,British Gas,0020070386,"13,032.16 ",Resources-Corporate,Electricity
43,DCMS,HE,24/11/2015,British Gas,0020070386,"13,258.01 ",Resources-Corporate,Electricity
44,DCMS,HE,24/11/2015,British Gas,0020070386,"9,722.86 ",Resources-Corporate,Electricity
45,DCMS,HE,24/11/2015,British Gas,0020070386,"4,763.79 ",Resources-Corporate,Electricity
46,DCMS,HE,24/11/2015,British Gas,0020070386,407.76 ,Resources-Corporate,Electricity
47,DCMS,HE,24/11/2015,British Gas,0020070386,"1,220.73 ",Resources-Corporate,Electricity
48,DCMS,HE,24/11/2015,British Gas,0020070386,"22,495.96 ",Resources-Corporate,Electricity
49,DCMS,HE,24/11/2015,British Gas,0020070386,582.52 ,Resources-Corporate,Electricity
50,DCMS,HE,24/11/2015,British Gas,0020070386,"4,755.93 ",Resources-Corporate,Electricity
51,DCMS,HE,24/11/2015,British Gas,0020070386,"7,444.65 ",Resources-Corporate,Electricity
52,DCMS,HE,24/11/2015,British Gas,0020070386,"2,516.59 ",Resources-Corporate,Electricity
53,DCMS,HE,24/11/2015,British Gas,0020070386,14.67 ,Resources-Corporate,Electricity
54,DCMS,HE,24/11/2015,British Gas,0020070386,530.01 ,Resources-Corporate,Electricity
55,DCMS,HE,24/11/2015,British Gas,0020070386,355.48 ,Resources-Corporate,Electricity
56,DCMS,HE,24/11/2015,British Gas,0020070386,240.47 ,Resources-Corporate,Electricity
57,DCMS,HE,24/11/2015,British Gas,0020070386,96.43 ,Resources-Corporate,Electricity
58,DCMS,HE,24/11/2015,British Gas,0020070386,162.94 ,Resources-Corporate,Electricity
59,DCMS,HE,24/11/2015,British Gas,0020070386,171.96 ,Resources-Corporate,Electricity
60,DCMS,HE,04/11/2015,Bruker UK Ltd,0040102136,"36,000.13 ",Research-Investigation & Analysis,Plant & Equipment > #10k
61,DCMS,HE,02/11/2015,Capita Secure Information Solutions Ltd,0040102460,"251,116.75 ",Resources-IMT,ITFM
62,DCMS,HE,02/11/2015,Capita Secure Information Solutions Ltd,0040102462,"25,602.00 ",Resources-IMT,ITFM
63,DCMS,HE,19/11/2015,Capita Secure Information Solutions Ltd,0040103029,"51,814.49 ",Resources-IMT,ITFM
64,DCMS,HE,19/11/2015,Capita Secure Information Solutions Ltd,0040103030,"51,814.49 ",Resources-IMT,ITFM
65,DCMS,HE,19/11/2015,Capita Secure Information Solutions Ltd,0040103031,"51,814.49 ",Resources-IMT,ITFM
66,DCMS,HE,19/11/2015,Capita Secure Information Solutions Ltd,0040103032,"51,814.49 ",Resources-IMT,ITFM
67,DCMS,HE,19/11/2015,Capita Secure Information Solutions Ltd,0040103033,"51,814.49 ",Resources-IMT,ITFM
68,DCMS,HE,04/11/2015,Chartered Institute for Archaeologists,0081003561,"44,389.20 ",Research-Strategic Planning & Mgmnt,ENABLING PROGRAMMESENABLING PROGRAMMES ENABLING PROGRAMMES
69,DCMS,HE,13/11/2015,Croft Building and Conservation Ltd,0040102925,"115,565.73 ",Planning-Planning Department,Works for Heritage Buildings
70,DCMS,HE,20/11/2015,English Heritage Trust,0040102332,"3,117.50 ",Engagement-Valuation & Devel. Economics,SLA Cross Charge Expenditure
71,DCMS,HE,20/11/2015,English Heritage Trust,0040102332,"51,507.00 ",Planning-Planning Department,SLA Cross Charge Expenditure
72,DCMS,HE,20/11/2015,English Heritage Trust,0040102332,"20,000.00 ",Resources-Office Estate,SLA Cross Charge Expenditure
73,DCMS,HE,02/11/2015,Gorse Industrial Estate,0082004049,"49,125.00 ",Planning-Planning Department,HISTORIC BUILDINGSGRANTS PAYABLE HISTORIC BUILDINGS
74,DCMS,HE,04/11/2015,Great Yarmouth Borough Council,0090514381,"30,000.00 ",Planning-Planning Department,OTHER GRANTSGRANTS PAYABLE OTHER GRANTS
75,DCMS,HE,02/11/2015,Jerl Enterprises,0082004048,"52,836.00 ",Planning-Planning Department,HISTORIC BUILDINGSGRANTS PAYABLE HISTORIC BUILDINGS
76,DCMS,HE,09/11/2015,Kineton PCC,0082004050,"35,000.00 ",Planning-Planning Department,PLACES OF WORSHIPGRANTS PAYABLE PLACES OF WORSHIP
77,DCMS,HE,23/11/2015,Knight Frank LLP,0040103228,"45,353.70 ",Resources-Office Estate,Rent - Operating Leases
78,DCMS,HE,23/11/2015,Knight Frank LLP,0040103228,"20,290.85 ",Resources-Office Estate,Building Service Charges
79,DCMS,HE,21/10/2015,LB Camden - Business Rates,0030000198,"48,863.00 ",Resources-Office Estate,Rates & CILOR
80,DCMS,HE,25/11/2015,LB Camden - Business Rates,0030000217,"48,863.00 ",Resources-Office Estate,Rates & CILOR
81,DCMS,HE,09/11/2015,Linney Cooper Ltd,0040101578,"47,766.00 ",National Collections-Capital Investment Programme,WIP Refurbishment Works
82,DCMS,HE,30/11/2015,Liverpool City Council,0082004071,"212,005.00 ",Planning-Planning Department,HISTORIC BUILDINGSGRANTS PAYABLE HISTORIC BUILDINGS
83,DCMS,HE,20/11/2015,National Audit Office,0040102937,"100,500.00 ",Resources-Finance & Procurement Dept,Audit Fee
84,DCMS,HE,30/11/2015,Naze Tower,0082004072,"32,939.00 ",Planning-Planning Department,HISTORIC BUILDINGSGRANTS PAYABLE HISTORIC BUILDINGS
85,DCMS,HE,30/11/2015,Outwell PCC,0082004068,"66,600.00 ",Planning-Planning Department,PLACES OF WORSHIPGRANTS PAYABLE PLACES OF WORSHIP
86,DCMS,HE,09/11/2015,The Architectural Heritage Fund,0090514387,"29,035.00 ",Planning-Planning Department,OTHER GRANTSGRANTS PAYABLE OTHER GRANTS
87,DCMS,HE,19/11/2015,The Architectural Heritage Fund,0090514401,"92,201.00 ",Planning-Planning Department,OTHER GRANTSGRANTS PAYABLE OTHER GRANTS
88,DCMS,HE,09/11/2015,The Heritage Alliance,0090514388,"31,371.00 ",Planning-Planning Department,OTHER GRANTSGRANTS PAYABLE OTHER GRANTS
89,DCMS,HE,11/11/2015,Vodafone,0040101496,"(12,934.35)",Resources-IMT,Telephone and Communications
